fUST/lending_fUST_20240706
["ID","MTS","AMOUNT","RATE_DAILY","PERIOD"]
[331318042,1720216239449,-29069.73687003,0.00049305,6]
[331318043,1720216239462,-25698.37136582,0.00049305,6]
[331318044,1720216239478,-51130.03641854,0.00049305,6]
[331318066,1720216241215,-550.99722361,0.00049305,6]
[331318067,1720216241226,-500.0,0.00049314,120]
[331318068,1720216241237,-603.03851538,0.00049314,31]
[331318069,1720216241247,-449.9692473,0.00049314,120]
[331318070,1720216241257,-500.0,0.00049314,120]
[331318071,1720216241267,-692.26219517,0.00049314,120]
[331318072,1720216241277,-593.3443786,0.00049314,120]
[331318073,1720216241288,-370.54513847,0.00049314,120]
[331318074,1720216241297,-692.26219517,0.00049314,120]
[331318075,1720216241307,-500.0,0.00049314,120]
[331318076,1720216241317,-692.26219517,0.00049314,120]
[331318077,1720216241327,-500.0,0.00049314,120]
[331318078,1720216241340,-692.26219517,0.00049314,120]
[331318079,1720216241350,-692.26219517,0.00049314,120]
[331318080,1720216241360,-692.26219517,0.00049314,120]
[331318081,1720216241369,-692.26219517,0.00049314,120]
[331318082,1720216241378,-500.0,0.00049315,120]
[331318083,1720216241388,-500.0,0.00049315,120]
[331318084,1720216241403,-500.0,0.00049315,120]
[331318085,1720216241412,-500.0,0.00049315,120]
[331318086,1720216241422,-500.0,0.00049315,120]
[331318087,1720216241431,-501.27154176,0.00049315,120]
[331318088,1720216241441,-500.0,0.00049315,120]
[331318089,1720216241452,-500.0,0.00049315,120]
[331318090,1720216241462,-234.1963398,0.00049315,120]
[331318091,1720216241472,-500.0,0.00049315,120]
[331318092,1720216241482,-511.35070727,0.00049315,120]
[331318094,1720216241492,-500.0,0.00049315,120]
[331318096,1720216241501,-500.0,0.00049315,120]
[331318097,1720216241511,-500.0,0.00049315,120]
[331318099,1720216241521,-500.0,0.00049315,120]
[331318101,1720216241530,-500.0,0.00049315,120]
[331318103,1720216241540,-515.44386999,0.00049315,120]
[331318105,1720216241549,-500.0,0.00049315,120]
[331318107,1720216241559,-1297.31,0.00049315,120]
[331318108,1720216241569,-554.77,0.00049315,120]
[331318110,1720216241579,-500.0,0.00049315,120]
[331318112,1720216241588,-500.0,0.00049315,120]
[331318114,1720216241598,-500.0,0.00049315,120]
[331318115,1720216241608,-500.0,0.00049315,120]
[331318116,1720216241618,-500.0,0.00049315,3]
[331318117,1720216241627,-500.0,0.00049315,120]
[331318118,1720216241636,-994.43,0.00049315,120]
[331318119,1720216241645,-500.0,0.00049315,120]
[331318120,1720216241654,-500.0,0.00049315,120]
[331318121,1720216241664,-500.0,0.00049315,120]
[331318122,1720216241673,-500.0,0.00049315,120]
[331318123,1720216241682,-500.0,0.00049315,120]
[331318124,1720216241692,-500.0,0.00049315,120]
[331318125,1720216241702,-531.75,0.00049315,120]
[331318126,1720216241711,-253.09042633,0.00049315,120]
[331318127,1720216241720,-500.0,0.00049315,120]
[331318128,1720216241730,-500.0,0.00049315,120]
[331318129,1720216241740,-500.0,0.00049315,120]
[331318130,1720216241750,-500.0,0.00049315,120]
[331318131,1720216241759,-1133.43,0.00049315,120]
[331318132,1720216241769,-722.16,0.00049315,120]
[331318133,1720216241779,-500.0,0.00049315,120]
[331318134,1720216241789,-500.0,0.00049315,120]
[331318135,1720216241799,-511.01010008,0.00049315,120]
[331318136,1720216241809,-500.0,0.00049315,120]
[331318137,1720216241819,-500.43926562,0.00049315,3]
[331318138,1720216241828,-500.0,0.00049315,120]
[331318139,1720216241839,-500.0,0.00049315,120]
[331318140,1720216241848,-746.18,0.00049315,120]
[331318141,1720216241858,-500.0,0.00049315,120]
[331318142,1720216241868,-572.36,0.00049315,120]
[331318143,1720216241877,-500.0,0.00049315,120]
[331318144,1720216241887,-618.63761294,0.00049315,120]
[331318145,1720216242072,-500.0,0.00049315,120]
[331318146,1720216242083,-1408.77,0.00049315,120]
[331318147,1720216242096,-500.0,0.00049315,120]
[331318148,1720216242106,-1271.22,0.00049315,120]
[331318149,1720216242117,-500.0,0.00049315,120]
[331318150,1720216242127,-500.0,0.00049315,120]
[331318151,1720216242137,-500.0,0.00049315,120]
[331318152,1720216242146,-619.1,0.00049315,120]
[331318153,1720216242157,-500.0,0.00049315,120]
[331318154,1720216242169,-500.0,0.00049315,120]
[331318155,1720216242178,-643.67,0.00049315,120]
[331318156,1720216242188,-1031.58,0.00049315,120]
[331318157,1720216242198,-515.5,0.00049315,120]
[331318158,1720216242210,-500.0,0.00049315,120]
[331318159,1720216242220,-1431.2,0.00049315,120]
[331318160,1720216242230,-500.0,0.00049315,120]
[331318161,1720216242240,-500.0,0.00049315,120]
[331318162,1720216242250,-500.0,0.00049315,120]
[331318163,1720216242259,-500.0,0.00049315,120]
[331318164,1720216242269,-500.0,0.00049315,120]
[331318165,1720216242279,-500.0,0.00049315,120]
[331318166,1720216242289,-500.0,0.00049315,120]
[331318167,1720216242298,-500.0,0.00049315,120]
[331318168,1720216242308,-670.73,0.00049315,120]
[331318169,1720216242318,-1566.87,0.00049315,120]
[331318170,1720216242328,-500.0,0.00049315,120]
[331318171,1720216242338,-500.0,0.00049315,120]
[331318172,1720216242348,-295.86843445,0.00049315,120]
[331318173,1720216242357,-500.0,0.00049315,120]
[331318174,1720216242367,-500.0,0.00049315,120]
[331318175,1720216242377,-500.0,0.00049315,120]
[331318176,1720216242387,-622.81,0.00049315,120]
[331318177,1720216242397,-500.0,0.00049315,120]
[331318178,1720216242408,-1087.16,0.00049315,120]
[331318179,1720216242418,-500.0,0.00049315,120]
[331318180,1720216242427,-500.0,0.00049315,120]
[331318181,1720216242436,-500.0,0.00049315,120]
[331318182,1720216242447,-848.77,0.00049315,120]
[331318183,1720216242458,-500.0,0.00049315,120]
[331318184,1720216242468,-500.0,0.00049315,120]
[331318185,1720216242478,-500.0,0.00049315,60]
[331318186,1720216242489,-500.0,0.00049315,120]
[331318187,1720216242499,-500.0,0.00049315,120]
[331318188,1720216242508,-500.0,0.00049315,120]
[331318189,1720216242518,-1521.37,0.00049315,120]
[331318190,1720216242527,-500.0,0.00049315,120]
[331318191,1720216242537,-820.63,0.00049315,120]
[331318192,1720216242546,-500.0,0.00049315,120]
[331318193,1720216242555,-779.92,0.00049315,120]
[331318194,1720216242565,-500.0,0.00049315,120]
[331318195,1720216242574,-500.0,0.00049315,120]
[331318196,1720216242584,-500.0,0.00049315,120]
[331318197,1720216242593,-500.0,0.00049315,120]
[331318198,1720216242603,-210.25013557,0.00049315,120]
[331318199,1720216242612,-500.0,0.00049315,120]
[331318200,1720216242622,-500.0,0.00049315,120]
[331318201,1720216242631,-765.65,0.00049315,120]
[331318202,1720216242641,-500.0,0.00049315,120]
[331318203,1720216242650,-519.03516727,0.00049315,120]
[331318204,1720216242659,-500.0,0.00049315,120]
[331318205,1720216242670,-500.0,0.00049315,120]
[331318206,1720216242679,-500.0,0.00049315,120]
[331318207,1720216242688,-500.0,0.00049315,120]
[331318208,1720216242697,-500.0,0.00049315,120]
[331318209,1720216242708,-500.0,0.00049315,120]
[331318210,1720216242717,-1908.83,0.00049315,120]
[331318211,1720216242726,-500.0,0.00049315,120]
[331318212,1720216242735,-500.0,0.00049315,120]
[331318213,1720216242745,-502.2537101,0.00049315,120]
[331318214,1720216242755,-500.0,0.00049315,120]
[331318215,1720216242765,-500.0,0.00049315,120]
[331318216,1720216242774,-500.0,0.00049315,120]
[331318217,1720216242783,-500.0,0.00049315,120]
[331318218,1720216242793,-500.0,0.00049315,120]
[331318219,1720216242803,-500.0,0.00049315,90]
[331318220,1720216242812,-892.46,0.00049315,120]
[331318221,1720216242821,-500.0,0.00049315,120]
[331318222,1720216242831,-500.0,0.00049315,120]
[331318223,1720216242840,-500.0,0.00049315,120]
[331318224,1720216242849,-500.0,0.00049315,120]
[331318225,1720216242859,-1325.93,0.00049315,120]
[331318226,1720216242868,-316.91069828,0.00049315,120]
[331318246,1720216246270,-183.08930172,0.00049315,120]
[331318247,1720216246280,-500.0,0.00049315,120]
[331318248,1720216246290,-500.0,0.00049315,2]
[331318249,1720216246300,-500.0,0.00049315,120]
[331318251,1720216246310,-500.0,0.00049315,120]
[331318253,1720216246319,-1131.29,0.00049315,120]
[331318254,1720216246329,-500.0,0.00049315,120]
[331318255,1720216246339,-500.0,0.00049315,120]
[331318256,1720216246348,-500.0,0.00049315,120]
[331318257,1720216246358,-155.92466195,0.00049315,120]
[331318258,1720216246370,-473.77261029,0.00049315,120]
[331318259,1720216246384,-521.06468489,0.00049315,120]
[331318260,1720216246755,-1423.39,0.00049305,3]
[331318262,1720216246765,-1859.99900949,0.00049315,120]
[331318273,1720216298520,566.25383832,0.00043834,4]
[331318274,1720216322344,170.550864,0.00037311,2]
[331318275,1720216323177,170.550864,0.00039006,2]
[331318276,1720216323312,170.550864,0.00040701,2]
[331318277,1720216323430,170.550864,0.00042397,2]
[331318278,1720216332375,159.831349,0.00021096,2]
[331318279,1720216332914,159.831349,0.00031631,2]
[331318280,1720216333357,159.831349,0.00042167,2]
[331318281,1720216340327,369.72554492,0.00043834,3]
[331318290,1720217237461,-159.831349,0.00021096,2]
[331318291,1720217238717,-4991.2172979,0.00035615,2]
[331318292,1720217240247,-7947.24132563,0.00035615,2]
[331318293,1720217240269,-162.749075,0.00038653,2]
[331318294,1720217240291,-359.7349756,0.00042629,4]
[331318295,1720217240312,-373.8816229,0.00042629,4]
[331318296,1720217240334,-518.85515067,0.00042999,4]
[331318297,1720217240365,-878.09217026,0.00043615,4]
[331318298,1720217240388,-5170.78291179,0.00043834,60]
[331318299,1720217255561,-150.30016482,0.00043834,60]
[331318301,1720217352628,-156.0,0.00043,90]
[331318302,1720217353076,-193.5176448,0.00043287,4]
[331318303,1720217353101,-1958.39283858,0.00043834,60]
[331318304,1720217353123,-154.71377951,0.00043834,4]
[331318305,1720217353144,-290.27376141,0.00043834,4]
[331318306,1720217353164,-763.20815407,0.00043834,4]
[331318307,1720217357627,2872.28382163,0.00043834,4]
[331318308,1720217361446,-830.10562837,0.00043834,4]
[331318328,1720217432747,-10000.0,0.00045,45]
[331318329,1720217432757,-169.4,0.00045005,31]
[331318331,1720217432767,-169.4,0.0004538,31]
[331318333,1720217432776,-10000.0,0.00046,46]
[331318335,1720217432785,-5645.37148728,0.000469,120]
[331318353,1720217440523,-17164.84851272,0.000469,120]
[331318355,1720217440533,-680.16785875,0.000469,28]
[331318356,1720217440544,-10000.0,0.00047,47]
[331318357,1720217440553,-167.0,0.00047,90]
[331318358,1720217440562,-3000.0,0.00047,2]
[331318359,1720217440571,-153.0,0.00047123,120]
[331318360,1720217440583,-877.0,0.00047448,2]
[331318361,1720217440593,-153.0,0.00047945,2]
[331318362,1720217440603,-153.0,0.00047945,2]
[331318363,1720217440612,-153.0,0.00047945,2]
[331318364,1720217440621,-153.0,0.00047945,2]
[331318365,1720217440631,-10000.0,0.00048,48]
[331318366,1720217440641,-680.16785874,0.00048874,28]
[331318367,1720217440651,-153.0,0.00048904,2]
[331318368,1720217440661,-262.747992,0.00048904,2]
[331318369,1720217440670,-10000.0,0.00049,49]
[331318370,1720217440679,-5000.0,0.00049,7]
[331318371,1720217440688,-262.77487672,0.00049204,2]
[331318372,1720217440698,-262.77487672,0.00049207,2]
[331318373,1720217440707,-262.77487672,0.0004921,2]
[331318374,1720217440716,-262.77487672,0.00049212,2]
[331318375,1720217440730,-262.77487672,0.00049215,2]
[331318376,1720217440740,-2000.0,0.00049215,120]
[331318377,1720217440750,-2696.88,0.00049294,3]
[331318378,1720217440759,-64527.8380502,0.00049304,6]
[331318379,1720217440768,-181.62591874,0.00049304,120]
[331318380,1720217440779,-500.0,0.00049304,120]
[331318381,1720217440788,-179.24277567,0.00049304,120]
[331318382,1720217440798,-32263.9190251,0.00049305,6]
[331318383,1720217440807,-35344.15428864,0.00049305,61]
[331318384,1720217440817,-161319.595125,0.00049305,6]
[331318385,1720217440826,-1157.4429911,0.00049313,2]
[331318386,1720217440835,-207.09828204,0.00049314,120]
[331318387,1720217440845,-365.3318679,0.00049314,120]
[331318388,1720217440854,-486.61224877,0.00049314,31]
[331318389,1720217440866,-427.04763599,0.00049314,120]
[331318390,1720217440878,-401.8215974,0.00049314,120]
[331318391,1720217440890,-500.0,0.00049314,120]
[331318392,1720217440900,-745.64359595,0.00049314,120]
[331318393,1720217440910,-745.64359595,0.00049314,120]
[331318394,1720217440919,-745.64359595,0.00049314,120]
[331318395,1720217440928,-745.64359595,0.00049314,120]
[331318396,1720217440937,-745.64359595,0.00049314,120]
[331318397,1720217440946,-760.03962554,0.00049314,120]
[331318398,1720217440956,-760.03962554,0.00049314,120]
[331318399,1720217440965,-760.03962554,0.00049314,120]
[331318400,1720217440976,-760.03962554,0.00049314,120]
[331318401,1720217440990,-760.03962554,0.00049314,120]
[331318402,1720217440999,-760.03962554,0.00049314,120]
[331318403,1720217441009,-760.03962554,0.00049314,120]
[331318404,1720217441019,-760.03962554,0.00049314,120]
[331318405,1720217441028,-760.03962554,0.00049314,120]
[331318406,1720217441037,-760.03962554,0.00049314,120]
[331318407,1720217441046,-760.03962554,0.00049314,120]
[331318408,1720217441055,-760.03962554,0.00049314,120]
[331318409,1720217441065,-760.03962554,0.00049314,120]
[331318410,1720217441075,-500.0,0.00049314,120]
[331318411,1720217441085,-500.0,0.00049314,120]
[331318412,1720217441094,-500.0,0.00049314,120]
[331318413,1720217441103,-500.0,0.00049314,120]
[331318414,1720217441112,-500.0,0.00049314,120]
[331318415,1720217441122,-231.06320177,0.00049314,120]
[331318416,1720217441131,-767.34769886,0.00049314,120]
[331318417,1720217441141,-767.34769886,0.00049314,120]
[331318418,1720217441156,-767.34769886,0.00049314,120]
[331318419,1720217441166,-767.34769886,0.00049314,120]
[331318420,1720217441176,-767.34769886,0.00049314,120]
[331318421,1720217441186,-767.34769886,0.00049314,120]
[331318422,1720217441195,-767.34769886,0.00049314,120]
[331318423,1720217441205,-766.88263965,0.00049314,120]
[331318424,1720217441214,-766.88263965,0.00049314,120]
[331318425,1720217441224,-766.88263965,0.00049314,120]
[331318426,1720217441233,-766.88263965,0.00049314,120]
[331318427,1720217441243,-766.88263965,0.00049314,120]
[331318428,1720217441252,-766.88263965,0.00049314,120]
[331318429,1720217441261,-754.97577761,0.00049314,120]
[331318430,1720217441271,-754.97577761,0.00049314,120]
[331318431,1720217441281,-754.97577761,0.00049314,120]
[331318432,1720217441290,-754.97577761,0.00049314,120]
[331318433,1720217441300,-754.97577761,0.00049314,120]
[331318434,1720217441309,-754.97577761,0.00049314,120]
[331318435,1720217441318,-754.97577761,0.00049314,120]
[331318436,1720217441342,-754.97577761,0.00049314,120]
[331318437,1720217441353,-754.97577761,0.00049314,120]
[331318438,1720217441362,-753.71748465,0.00049314,120]
[331318439,1720217441371,-753.71748465,0.00049314,120]
[331318440,1720217441380,-753.71748465,0.00049314,120]
[331318441,1720217441390,-765.31313826,0.00049314,120]
[331318442,1720217441400,-765.31313826,0.00049314,120]
[331318443,1720217441409,-765.31313826,0.00049314,120]
[331318444,1720217441419,-765.31313826,0.00049314,120]
[331318445,1720217441428,-765.31313826,0.00049314,120]
[331318446,1720217441438,-765.31313826,0.00049314,120]
[331318447,1720217441448,-765.31313826,0.00049314,120]
[331318448,1720217441458,-743.1157442,0.00049314,120]
[331318449,1720217441469,-743.1157442,0.00049314,120]
[331318450,1720217441479,-743.1157442,0.00049314,120]
[331318451,1720217441491,-743.1157442,0.00049314,120]
[331318452,1720217441505,-743.1157442,0.00049314,120]
[331318453,1720217441514,-743.1157442,0.00049314,120]
[331318454,1720217441524,-743.1157442,0.00049314,120]
[331318455,1720217441535,-743.1157442,0.00049314,120]
[331318456,1720217441546,-733.8267974,0.00049314,120]
[331318457,1720217441733,-733.8267974,0.00049314,120]
[331318458,1720217441744,-733.8267974,0.00049314,120]
[331318459,1720217441754,-733.8267974,0.00049314,120]
[331318460,1720217441765,-733.8267974,0.00049314,120]
[331318461,1720217441775,-733.8267974,0.00049314,120]
[331318462,1720217441784,-40.1308034,0.00049314,120]
[331318463,1720217441985,-723.0490659,0.00049314,120]
[331318464,1720217441994,-763.1798693,0.00049314,120]
[331318465,1720217442004,-763.1798693,0.00049314,120]
[331318466,1720217442014,-667.78238563,0.00049314,120]
[331318467,1720217442023,-667.78238563,0.00049314,120]
[331318468,1720217442033,-559.92784299,0.00049314,120]
[331318503,1720217447637,-2247.4,0.00049305,3]
[331318504,1720217447647,-107.85454264,0.00049314,120]
[331318505,1720217447656,-667.78238563,0.00049314,120]
[331318506,1720217447666,-1144.76980396,0.00049314,120]
[331318507,1720217447676,-500.0,0.00049314,2]
[331318508,1720217447685,-3637.36540041,0.00049315,61]
[331318509,1720217447706,-725.43154606,0.00049315,61]
[331318514,1720217449204,-153.0,0.00047123,120]
[331318515,1720217449214,-1734.0670151,0.00049315,61]
[331318516,1720217449226,-3620.97343481,0.00049315,61]
[331318517,1720217449237,-44961.35490205,0.00049315,61]
[331318518,1720217449247,-500.0,0.00049315,120]
[331318519,1720217449256,-500.0,0.00049315,120]
[331318520,1720217449266,-500.0,0.00049315,120]
[331318522,1720217449276,-500.0,0.00049315,120]
[331318523,1720217449285,-500.0,0.00049315,120]
[331318525,1720217449295,-500.0,0.00049315,120]
[331318527,1720217449304,-500.0,0.00049315,120]
[331318529,1720217449313,-500.0,0.00049315,120]
[331318530,1720217449323,-500.0,0.00049315,120]
[331318531,1720217449332,-500.0,0.00049315,120]
[331318532,1720217449343,-500.0,0.00049315,120]
[331318533,1720217449352,-500.0,0.00049315,120]
[331318534,1720217449362,-221.90314156,0.00049315,120]
[331318535,1720217449371,-500.0,0.00049315,120]
[331318536,1720217449381,-500.0,0.00049315,120]
[331318537,1720217449391,-500.0,0.00049315,120]
[331318538,1720217449400,-500.0,0.00049315,120]
[331318539,1720217449410,-500.0,0.00049315,120]
[331318540,1720217449419,-500.0,0.00049315,120]
[331318541,1720217449429,-500.0,0.00049315,120]
[331318542,1720217449438,-500.0,0.00049315,120]
[331318543,1720217449447,-500.0,0.00049315,120]
[331318544,1720217449456,-733.75,0.00049315,120]
[331318545,1720217449466,-500.0,0.00049315,120]
[331318546,1720217449475,-500.0,0.00049315,120]
[331318547,1720217449485,-500.0,0.00049315,120]
[331318548,1720217449494,-500.0,0.00049315,120]
[331318549,1720217449508,-500.0,0.00049315,120]
[331318550,1720217449517,-500.0,0.00049315,120]
[331318551,1720217449527,-500.0,0.00049315,120]
[331318552,1720217449536,-500.0,0.00049315,120]
[331318553,1720217449547,-855.27,0.00049315,120]
[331318554,1720217449556,-1218.25,0.00049315,120]
[331318555,1720217449566,-500.0,0.00049315,120]
[331318556,1720217449574,-500.0,0.00049315,120]
[331318557,1720217449588,-500.0,0.00049315,120]
[331318558,1720217449599,-500.0,0.00049315,120]
[331318559,1720217449608,-500.0,0.00049315,120]
[331318560,1720217449617,-500.0,0.00049315,120]
[331318561,1720217449627,-1392.97,0.00049315,60]
[331318562,1720217449638,-500.0,0.00049315,120]
[331318563,1720217449647,-500.0,0.00049315,120]
[331318564,1720217449658,-616.85,0.00049315,120]
[331318565,1720217449667,-715.08,0.00049315,120]
[331318566,1720217449677,-519.52,0.00049315,120]
[331318567,1720217449687,-151.0,0.00049315,14]
[331318568,1720217449698,-151.0,0.00049315,14]
[331318569,1720217449708,-500.0,0.00049315,120]
[331318570,1720217449718,-500.0,0.00049315,120]
[331318571,1720217449727,-500.0,0.00049315,120]
[331318572,1720217449737,-500.0,0.00049315,120]
[331318573,1720217449746,-151.0,0.00049315,14]
[331318574,1720217449756,-500.0,0.00049315,120]
[331318575,1720217449765,-500.0,0.00049315,120]
[331318576,1720217449774,-500.0,0.00049315,120]
[331318577,1720217449783,-500.0,0.00049315,120]
[331318578,1720217449792,-500.0,0.00049315,120]
[331318579,1720217449801,-500.0,0.00049315,120]
[331318580,1720217449810,-548.51,0.00049315,120]
[331318581,1720217449819,-500.0,0.00049315,120]
[331318582,1720217449827,-1000.0,0.00049315,120]
[331318583,1720217449837,-500.0,0.00049315,120]
[331318584,1720217449846,-500.0,0.00049315,120]
[331318585,1720217449856,-500.0,0.00049315,120]
[331318586,1720217449865,-500.0,0.00049315,120]
[331318587,1720217449874,-500.0,0.00049315,120]
[331318588,1720217449884,-500.0,0.00049315,120]
[331318589,1720217449893,-500.0,0.00049315,120]
[331318590,1720217449903,-500.0,0.00049315,120]
[331318591,1720217449912,-4308.83,0.00049315,120]
[331318592,1720217449921,-1350.07,0.00049315,120]
[331318593,1720217449930,-500.0,0.00049315,120]
[331318594,1720217449940,-500.0,0.00049315,20]
[331318595,1720217449950,-501.80841656,0.00049315,120]
[331318596,1720217449959,-500.0,0.00049315,120]
[331318597,1720217449968,-500.0,0.00049315,120]
[331318598,1720217449977,-836.62,0.00049315,120]
[331318599,1720217449986,-500.0,0.00049315,120]
[331318600,1720217450000,-500.0,0.00049315,120]
[331318601,1720217450021,-481.89767634,0.00049315,120]
[331318602,1720217450031,-786.44,0.00049315,120]
[331318603,1720217450040,-561.59,0.00049315,120]
[331318604,1720217450049,-500.0,0.00049315,120]
[331318605,1720217450059,-317.42581787,0.00049315,120]
[331318606,1720217450069,-593.3,0.00049315,120]
[331318607,1720217450079,-500.0,0.00049315,120]
[331318608,1720217450089,-500.0,0.00049315,120]
[331318610,1720217450099,-511.92893088,0.00049315,120]
[331318611,1720217450108,-500.0,0.00049315,120]
[331318612,1720217450117,-500.0,0.00049315,120]
[331318613,1720217450126,-173.85751703,0.00049315,120]
[331318614,1720217450136,-504.0474978,0.00049315,120]
[331318615,1720217450145,-500.0,0.00049315,120]
[331318616,1720217450155,-500.0,0.00049315,120]
[331318617,1720217450164,-507.05294163,0.00049315,120]
[331318618,1720217450173,-500.0,0.00049315,120]
[331318619,1720217450182,-500.0,0.00049315,120]
[331318620,1720217450191,-151.0,0.00049315,14]
[331318621,1720217450201,-1501.58,0.00049315,120]
[331318622,1720217450210,-988.6,0.00049315,120]
[331318623,1720217450220,-500.0,0.00049315,120]
[331318624,1720217450229,-524.80255849,0.00049315,120]
[331318625,1720217450238,-500.0,0.00049315,120]
[331318626,1720217450247,-500.0,0.00049315,120]
[331318627,1720217450256,-500.0,0.00049315,120]
[331318628,1720217450266,-517.8319729,0.00049315,2]
[331318629,1720217450276,-500.0,0.00049315,120]
[331318630,1720217450285,-500.0,0.00049315,120]
[331318631,1720217450294,-500.0,0.00049315,120]
[331318632,1720217450304,-500.0,0.00049315,120]
[331318633,1720217450315,-642.78,0.00049315,120]
[331318634,1720217450324,-550.65979157,0.00049315,120]
[331318635,1720217450335,-500.0,0.00049315,120]
[331318636,1720217450344,-500.0,0.00049315,120]
[331318637,1720217450354,-500.0,0.00049315,120]
[331318638,1720217450363,-500.0,0.00049315,120]
[331318639,1720217450373,-500.0,0.00049315,120]
[331318640,1720217450383,-208.23,0.00049315,7]
[331318641,1720217450392,-500.0,0.00049315,120]
[331318642,1720217450402,-596.85,0.00049315,120]
[331318643,1720217450411,-657.89,0.00049315,120]
[331318644,1720217450420,-500.0,0.00049315,120]
[331318645,1720217450430,-1041.86,0.00049315,120]
[331318646,1720217450440,-500.0,0.00049315,120]
[331318647,1720217450449,-500.0,0.00049315,120]
[331318648,1720217450458,-500.0,0.00049315,120]
[331318649,1720217450468,-631.64,0.00049315,120]
[331318650,1720217450478,-500.0,0.00049315,120]
[331318651,1720217450487,-500.0,0.00049315,120]
[331318652,1720217450496,-500.0,0.00049315,120]
[331318653,1720217450511,-500.0,0.00049315,120]
[331318654,1720217450520,-629.32,0.00049315,120]
[331318655,1720217450529,-523.3,0.00049315,120]
[331318656,1720217450538,-813.4,0.00049315,120]
[331318657,1720217450549,-500.0,0.00049315,120]
[331318658,1720217450558,-1084.15,0.00049315,120]
[331318659,1720217450568,-525.19,0.00049315,120]
[331318660,1720217450579,-500.0,0.00049315,120]
[331318661,1720217450589,-500.0,0.00049315,120]
[331318662,1720217450598,-500.0,0.00049315,120]
[331318663,1720217450608,-500.0,0.00049315,120]
[331318664,1720217450617,-1457.98,0.00049315,120]
[331318665,1720217450627,-500.0,0.00049315,120]
[331318666,1720217450636,-500.0,0.00049315,120]
[331318667,1720217450646,-500.0,0.00049315,120]
[331318668,1720217450656,-500.0,0.00049315,120]
[331318669,1720217450665,-500.0,0.00049315,120]
[331318670,1720217450676,-500.0,0.00049315,120]
[331318671,1720217450685,-500.0,0.00049315,60]
[331318672,1720217450694,-500.0,0.00049315,120]
[331318673,1720217450704,-500.0,0.00049315,120]
[331318674,1720217450713,-500.0,0.00049315,120]
[331318675,1720217450722,-500.0,0.00049315,120]
[331318676,1720217450731,-500.0,0.00049315,120]
[331318677,1720217450740,-500.0,0.00049315,120]
[331318678,1720217450750,-500.0,0.00049315,120]
[331318679,1720217450759,-500.0,0.00049315,120]
[331318680,1720217450768,-500.0,0.00049315,120]
[331318681,1720217450778,-151.0,0.00049315,14]
[331318682,1720217450787,-591.88,0.00049315,120]
[331318683,1720217450797,-393.7467674,0.00049315,120]
[331318684,1720217450806,-500.0,0.00049315,120]
[331318685,1720217450816,-1829.29,0.00049315,120]
[331318686,1720217450825,-552.77,0.00049315,120]
[331318687,1720217450835,-506.80514878,0.00049315,120]
[331318688,1720217450844,-499.99972297,0.00049315,120]
[331318689,1720217450854,-500.0,0.00049315,120]
[331318690,1720217450864,-500.0,0.00049315,120]
[331318691,1720217450874,-500.0,0.00049315,2]
[331318692,1720217450883,-500.0,0.00049315,120]
[331318693,1720217450892,-500.0,0.00049315,120]
[331318694,1720217450901,-500.0,0.00049315,120]
[331318695,1720217450911,-500.0,0.00049315,120]
[331318696,1720217450919,-500.0,0.00049315,120]